fUST/lending_fUST_20240921
["ID","MTS","AMOUNT","RATE_DAILY","PERIOD"]
[338708535,1726889447464,-500.0,0.00014454,2]
[338708536,1726889447474,-500.0,0.00014454,2]
[338708537,1726889447484,-152.064328,0.00014454,2]
[338708538,1726889447493,-151.0,0.00014454,2]
[338708539,1726889447503,-151.0,0.00014454,2]
[338708540,1726889447512,-500.0,0.00014473,2]
[338708541,1726889447521,-500.0,0.00014473,2]
[338708542,1726889447531,-500.0,0.00014473,2]
[338708543,1726889447543,-500.0,0.00014473,2]
[338708544,1726889447553,-151.0,0.00014492,2]
[338708545,1726889447562,-3000.0,0.00014644,2]
[338708546,1726889447571,-5201.53232111,0.00014702,2]
[338708547,1726889447582,-500.0,0.00014705,2]
[338708548,1726889447591,-1137.71,0.00014705,2]
[338708549,1726889447600,-500.0,0.00014705,2]
[338708550,1726889447610,-690.5,0.00014705,2]
[338708551,1726889447622,-16889.01,0.00014705,2]
[338708552,1726889447631,-2782.44,0.00014705,2]
[338708553,1726889447641,-254.04200118,0.00014711,2]
[338708554,1726889447650,-557.53,0.00014711,2]
[338708555,1726889447660,-500.0,0.00014711,2]
[338708556,1726889447669,-165.06377807,0.00014711,2]
[338708557,1726889447679,-1136.42,0.00014711,2]
[338708558,1726889447689,-838.59,0.00014712,2]
[338708559,1726889447698,-500.0,0.00014712,2]
[338708560,1726889447708,-500.0,0.00014712,2]
[338708561,1726889447718,-500.0,0.00014712,2]
[338708562,1726889447728,-500.0,0.00014712,2]
[338708563,1726889447738,-562.31,0.00014712,2]
[338708564,1726889447748,-500.0,0.00014712,2]
[338708565,1726889447758,-500.0,0.00014712,2]
[338708566,1726889447768,-500.0,0.00014712,2]
[338708567,1726889447779,-500.0,0.00014712,2]
[338708568,1726889447788,-500.0,0.00014712,2]
[338708569,1726889447799,-514.92854123,0.00014712,2]
[338708570,1726889447808,-213.346863,0.00014712,2]
[338708571,1726889447818,-151.0,0.00014712,2]
[338708572,1726889447827,-500.0,0.00014712,2]
[338708573,1726889447837,-500.0,0.00014712,2]
[338708574,1726889447847,-500.0,0.00014712,2]
[338708575,1726889447856,-500.0,0.00014712,2]
[338708576,1726889447866,-500.0,0.00014712,2]
[338708577,1726889447876,-500.0,0.00014712,2]
[338708578,1726889447886,-500.0,0.00014712,2]
[338708579,1726889447896,-500.0,0.00014712,2]
[338708580,1726889447906,-500.0,0.00014712,2]
[338708581,1726889447915,-320.581003,0.00014712,2]
[338708582,1726889447925,-500.0,0.00014712,2]
[338708583,1726889447936,-151.0,0.00014712,2]
[338708584,1726889447945,-451.22539677,0.00014712,2]
[338708585,1726889447954,-320.581003,0.00014712,2]
[338708586,1726889447964,-151.0,0.00014712,2]
[338708587,1726889447974,-286.730556,0.00014712,2]
[338708588,1726889447984,-286.730556,0.00014712,2]
[338708589,1726889447994,-500.0,0.00014712,2]
[338708590,1726889448003,-512.71212299,0.00014712,2]
[338708591,1726889448012,-151.0,0.00014712,2]
[338708592,1726889448022,-151.0,0.00014712,2]
[338708593,1726889448032,-500.0,0.00014712,2]
[338708594,1726889448043,-500.0,0.00014712,2]
[338708595,1726889448053,-680.9,0.00014712,2]
[338708596,1726889448063,-500.0,0.00014712,2]
[338708597,1726889448073,-500.0,0.00014712,2]
[338708598,1726889448082,-200.0,0.00014712,2]
[338708599,1726889448092,-500.0,0.00014713,2]
[338708600,1726889448102,-5201.53232111,0.00014717,2]
[338708601,1726889448112,-66.47233932,0.00014727,2]
[338708602,1726889448377,-500.0,0.00014157,2]
[338708603,1726889448387,-129.18,0.00014179,2]
[338708604,1726889600269,199.0,0.0001404,2]
[338708605,1726889659333,445.964582,0.00011781,2]
[338708607,1726889692953,237.133165,0.00013699,2]
[338708609,1726889911002,600.0,0.00013157,2]
[338708610,1726889929751,232.512842,0.00013252,2]
[338708611,1726889929960,232.512842,0.00013289,2]
[338708612,1726889930188,232.512842,0.00013325,2]
[338708613,1726889930429,232.512842,0.00013361,2]
[338708614,1726889930665,232.512842,0.00013398,2]
[338708615,1726889930868,232.512842,0.00013434,2]
[338708616,1726889931110,232.512842,0.00013471,2]
[338708617,1726889931322,232.512842,0.00013507,2]
[338708618,1726889931543,232.512842,0.00013543,2]
[338708619,1726889931761,232.512842,0.0001358,2]
[338708620,1726889931966,232.512842,0.00013616,2]
[338708621,1726889932166,232.512842,0.00013652,2]
[338708622,1726889932392,232.512842,0.00013689,2]
[338708623,1726889932983,232.512842,0.00013725,2]
[338708624,1726889933066,232.512842,0.00013761,2]
[338708625,1726889933296,232.512842,0.00013798,2]
[338708626,1726889933508,232.512842,0.00013834,2]
[338708627,1726889933732,232.512842,0.0001387,2]
[338708628,1726889933920,232.512842,0.00013907,2]
[338708629,1726889934342,232.512842,0.00013943,2]
[338708632,1726890344817,404.755184,0.00011781,2]
[338708638,1726890563117,2556.54851164,0.00014028,2]
[338708654,1726890632257,-500.46647554,0.00014079,2]
[338708655,1726890632270,-172.73727556,0.00014079,2]
[338708656,1726890632280,-300.0,0.00014126,2]
[338708657,1726890632291,-300.0,0.00014126,2]
[338708658,1726890632301,-2282.45030744,0.00014127,2]
[338708659,1726890632314,-2907.91224816,0.00014127,2]
[338708660,1726890632333,-11909.27149336,0.00014127,2]
[338708686,1726890638249,-61355.07805794,0.00014127,2]
[338708688,1726890638258,-78454.7121069,0.00014128,2]
[338708690,1726890638267,-500.0,0.00014135,2]
[338708692,1726890638277,-314.77652561,0.00014135,2]
[338708694,1726890638286,-650.84117541,0.00014135,2]
[338708695,1726890638296,-500.0,0.00014135,2]
[338708696,1726890638305,-500.0,0.00014135,2]
[338708697,1726890638315,-500.0,0.00014135,2]
[338708698,1726890638324,-500.0,0.00014135,2]
[338708699,1726890638336,-78454.7121069,0.00014136,2]
[338708700,1726890638346,-500.0,0.00014136,2]
[338708701,1726890638355,-500.0,0.00014136,2]
[338708702,1726890638365,-155.94976291,0.00014136,2]
[338708703,1726890638376,-500.0,0.00014136,2]
[338708704,1726890638386,-351.97900343,0.00014136,2]
[338708705,1726890638396,-427.32406445,0.00014136,2]
[338708706,1726890638405,-500.0,0.00014136,2]
[338708707,1726890638417,-500.0,0.00014136,2]
[338708708,1726890638426,-500.0,0.00014136,2]
[338708709,1726890638435,-153.27431642,0.00014136,2]
[338708710,1726890638444,-500.0,0.00014136,2]
[338708711,1726890638454,-144092.26853562,0.00014136,2]
[338708712,1726890638466,-2674.02,0.00014136,2]
[338708713,1726890640324,-2001.97965231,0.00014045,2]
[338708714,1726890640336,-10143.13567838,0.00014136,2]
[338708715,1726890640346,-157.60850624,0.00014136,2]
[338708716,1726890640355,-112198.946913,0.00014137,2]
[338708717,1726890640364,-74799.2979421,0.00014138,2]
[338708718,1726890640373,-500.0,0.00014145,2]
[338708719,1726890640385,-1090.3,0.00014145,2]
[338708720,1726890640394,-500.0,0.00014145,2]
[338708721,1726890640403,-661.73,0.00014145,2]
[338708722,1726890640414,-500.0,0.00014145,2]
[338708723,1726890640424,-199.23723702,0.00014145,2]
[338708724,1726890640433,-500.0,0.00014145,2]
[338708725,1726890640442,-16185.3,0.00014145,2]
[338708726,1726890640451,-2697.62,0.00014145,2]
[338708727,1726890640461,-20520.88657202,0.00014146,2]
[338708734,1726890643302,-955.0,0.00014146,2]
[338708740,1726890646284,-1685.45,0.00014146,2]
[338708742,1726890723616,498.97722914,0.00013979,2]
[338708744,1726890939311,423.666353,0.00011781,2]
[338708745,1726890953031,2633.1705365,0.00014037,2]
[338708746,1726891090333,237.1331665,0.00013699,2]
[338708747,1726891144699,2304.02421949,0.00014035,2]
[338708748,1726891173566,170.4812335,0.00013234,2]
[338708749,1726891337962,2016.02119201,0.00014035,2]
[338708750,1726891367316,7140.47594759,0.00013946,2]
[338708751,1726891369121,150.0,0.00013718,2]
[338708771,1726891530144,1764.018543,0.00014025,2]
[338708778,1726891609386,384.517425,0.00011781,2]
[338708780,1726891628110,177.849874,0.00013699,2]
[338708782,1726891725495,1543.51622516,0.00014016,2]
[338708784,1726891772865,6717.3763433,0.00013699,2]
[338708786,1726891825246,1801.78168707,0.00014035,2]
[338708787,1726891838527,-1693.18825843,0.00014046,2]
[338708788,1726891838537,-3000.0,0.00014057,2]
[338708789,1726891838547,-300.0,0.00014099,2]
[338708790,1726891838556,-300.0,0.00014099,2]
[338708791,1726891838566,-5000.0,0.000141,2]
[338708792,1726891838576,-150.112233,0.000141,2]
[338708793,1726891838586,-53642.0936002,0.00014116,2]
[338708794,1726891838596,-58841.0340801,0.00014116,2]
[338708795,1726891838607,-186.64963982,0.00014123,2]
[338708796,1726891838618,-500.0,0.00014123,2]
[338708797,1726891838628,-500.0,0.00014123,2]
[338708798,1726891838637,-500.0,0.00014123,2]
[338708799,1726891838648,-500.0,0.00014123,2]
[338708800,1726891838658,-500.0,0.00014123,2]
[338708801,1726891838667,-500.0,0.00014123,2]
[338708802,1726891838676,-500.0,0.00014123,2]
[338708803,1726891838686,-500.0,0.00014123,2]
[338708804,1726891838695,-500.0,0.00014123,2]
[338708805,1726891838707,-500.0,0.00014123,2]
[338708806,1726891838716,-500.0,0.00014123,2]
[338708807,1726891838725,-571.13880313,0.00014123,2]
[338708808,1726891838735,-500.0,0.00014123,2]
[338708809,1726891838745,-500.0,0.00014123,2]
[338708810,1726891838754,-500.0,0.00014123,2]
[338708811,1726891838763,-500.0,0.00014123,2]
[338708812,1726891838772,-500.0,0.00014123,2]
[338708813,1726891838782,-500.0,0.00014123,2]
[338708814,1726891838791,-500.0,0.00014123,2]
[338708815,1726891838800,-500.0,0.00014123,2]
[338708816,1726891838811,-500.0,0.00014123,2]
[338708817,1726891838821,-500.0,0.00014123,2]
[338708818,1726891838830,-500.0,0.00014123,2]
[338708819,1726891838840,-500.0,0.00014123,2]
[338708820,1726891838851,-500.0,0.00014123,2]
[338708821,1726891838860,-500.0,0.00014123,2]
[338708822,1726891838870,-500.0,0.00014123,2]
[338708823,1726891838879,-500.0,0.00014123,2]
[338708824,1726891838888,-500.0,0.00014123,2]
[338708825,1726891838897,-500.0,0.00014123,2]
[338708826,1726891838906,-500.0,0.00014123,2]
[338708827,1726891838915,-500.0,0.00014123,2]
[338708828,1726891838925,-500.0,0.00014123,2]
[338708829,1726891838938,-500.0,0.00014123,2]
[338708830,1726891838947,-500.0,0.00014123,2]
[338708831,1726891838956,-500.0,0.00014123,2]
[338708832,1726891838966,-500.0,0.00014123,2]
[338708833,1726891838977,-500.0,0.00014123,2]
[338708834,1726891838988,-500.0,0.00014123,2]
[338708835,1726891838998,-500.0,0.00014123,2]
[338708836,1726891839008,-500.0,0.00014123,2]
[338708837,1726891839018,-500.0,0.00014123,2]
[338708838,1726891839028,-500.0,0.00014123,2]
[338708839,1726891839038,-500.0,0.00014123,2]
[338708840,1726891839049,-500.0,0.00014123,2]
[338708841,1726891839058,-53642.0936002,0.00014124,2]
[338708842,1726891839068,-58841.0340801,0.00014124,2]
[338708843,1726891839079,-53642.0936002,0.00014126,2]
[338708844,1726891839090,-58841.0340801,0.00014126,2]
[338708845,1726891839099,-500.0,0.00014134,2]
[338708846,1726891839109,-500.0,0.00014134,2]
[338708847,1726891839118,-326.53607306,0.00014134,2]
[338708848,1726891839127,-500.0,0.00014134,2]
[338708849,1726891839137,-340.7062297,0.00014134,2]
[338708850,1726891839147,-500.0,0.00014134,2]
[338708851,1726891839155,-500.0,0.00014134,2]
[338708852,1726891839165,-384.51134289,0.00014134,2]
[338708853,1726891839174,-500.0,0.00014134,2]
[338708854,1726891839183,-500.0,0.00014134,2]
[338708855,1726891839194,-500.0,0.00014134,2]
[338708856,1726891839203,-500.0,0.00014134,2]
[338708857,1726891839212,-500.0,0.00014134,2]
[338708858,1726891839221,-338.76726193,0.00014134,2]
[338708859,1726891839231,-500.0,0.00014134,2]
[338708860,1726891839240,-500.0,0.00014134,2]
[338708861,1726891839249,-500.0,0.00014134,2]
[338708862,1726891839258,-500.0,0.00014134,2]
[338708863,1726891839269,-502.29068794,0.00014134,2]
[338708864,1726891839278,-500.0,0.00014134,2]
[338708865,1726891839287,-500.0,0.00014134,2]
[338708866,1726891839296,-500.0,0.00014134,2]
[338708867,1726891839306,-527.83751476,0.00014134,2]
[338708868,1726891839315,-500.0,0.00014134,2]
[338708869,1726891839324,-372.18477265,0.00014134,2]
[338708870,1726891839334,-611.92,0.00014134,2]
[338708871,1726891839343,-500.0,0.00014134,2]
[338708872,1726891839354,-521.94275987,0.00014134,2]
[338708873,1726891839365,-1354.27,0.00014134,2]
[338708874,1726891839374,-500.0,0.00014134,2]
[338708875,1726891839384,-500.0,0.00014134,2]
[338708876,1726891839393,-419.27336514,0.00014134,2]
[338708877,1726891839402,-500.0,0.00014134,2]
[338708878,1726891839412,-500.0,0.00014134,2]
[338708879,1726891839421,-500.0,0.00014134,2]
[338708880,1726891839431,-520.48270098,0.00014134,2]
[338708881,1726891839442,-496.40475591,0.00014134,2]
[338708882,1726891839454,-500.0,0.00014134,2]
[338708883,1726891839463,-218.10949511,0.00014134,2]
[338708884,1726891839473,-500.0,0.00014134,2]
[338708885,1726891839483,-171.3556056,0.00014134,2]
[338708886,1726891839493,-500.0,0.00014134,2]
[338708887,1726891839502,-545.9990488,0.00014134,2]
[338708888,1726891839512,-561.21385688,0.00014134,2]
[338708889,1726891839521,-500.0,0.00014134,2]
[338708890,1726891839530,-824.74,0.00014134,2]
[338708891,1726891839542,-503.4248174,0.00014134,2]
[338708892,1726891839552,-513.8690813,0.00014134,2]
[338708893,1726891839561,-500.0,0.00014134,2]
[338708894,1726891839571,-500.0,0.00014134,2]
[338708895,1726891839581,-500.0,0.00014134,2]
[338708896,1726891839591,-366.97709976,0.00014134,2]
[338708897,1726891839602,-199.23723702,0.00014134,2]
[338708898,1726891839613,-500.0,0.00014134,2]
[338708899,1726891839622,-20157.05,0.00014134,2]
[338708900,1726891839633,-500.0,0.00014134,2]
[338708901,1726891839644,-500.0,0.00014134,2]
[338708902,1726891839655,-3348.99,0.00014134,2]
[338708903,1726891839664,-529.6752456,0.00014134,2]
[338708904,1726891839673,-1239.98,0.00014134,2]
[338708905,1726891839683,-500.0,0.00014134,2]
[338708906,1726891839694,-500.0,0.00014134,2]
[338708907,1726891839704,-160926.280801,0.00014135,2]
[338708908,1726891839714,-74648.72213404,0.00014135,2]
[338708909,1726891839728,-7176.03068209,0.00014135,2]
[338708910,1726891839741,-2528.5906979,0.00014135,2]
[338708930,1726891840517,-92169.75872597,0.00014135,2]
[338708932,1726891840527,-152.064328,0.00014135,2]
[338708934,1726891840537,-151.0,0.00014135,2]
[338708936,1726891840546,-151.0,0.00014135,2]
[338708938,1726891840555,-500.0,0.00014145,2]
[338708940,1726891840565,-500.0,0.00014145,2]
[338708942,1726891840574,-500.0,0.00014145,2]
[338708944,1726891840583,-500.0,0.00014145,2]
[338708946,1726891840592,-500.0,0.00014145,2]
[338708948,1726891840601,-500.0,0.00014145,2]
[338708950,1726891840610,-500.0,0.00014145,2]
[338708952,1726891840619,-500.0,0.00014145,2]
[338708954,1726891840628,-500.0,0.00014145,2]
[338708956,1726891840637,-500.0,0.00014145,2]
[338708958,1726891840646,-500.0,0.00014145,2]
[338708960,1726891840655,-500.0,0.00014145,2]
[338708962,1726891840665,-500.0,0.00014145,2]
[338708964,1726891840674,-863.44,0.00014145,2]
[338708966,1726891840683,-500.0,0.00014145,2]
[338708968,1726891840693,-500.0,0.00014145,2]
[338708970,1726891840702,-500.0,0.00014145,2]
[338708972,1726891840711,-500.0,0.00014145,2]
[338708974,1726891840721,-500.0,0.00014145,2]
[338708976,1726891840730,-500.0,0.00014145,2]
[338708978,1726891840739,-500.0,0.00014145,2]
[338708980,1726891840749,-621.68,0.00014145,2]
[338708982,1726891840758,-500.0,0.00014145,2]
[338708984,1726891840767,-503.13582169,0.00014145,2]
[338708986,1726891840776,-504.13918314,0.00014145,2]
[338708988,1726891840786,-200.0,0.00014145,2]
[338708990,1726891840795,-330.36822488,0.00014145,2]
[338708992,1726891840804,-500.0,0.00014145,2]
[338708994,1726891840813,-500.0,0.00014145,2]
[338708996,1726891840823,-500.0,0.00014145,2]
[338708998,1726891840832,-500.0,0.00014145,2]
[338709000,1726891840842,-500.0,0.00014145,2]
[338709002,1726891840851,-552.67,0.00014145,2]
[338709004,1726891840860,-500.0,0.00014145,2]
[338709006,1726891840870,-500.0,0.00014145,2]
[338709008,1726891840880,-500.0,0.00014145,2]
[338709010,1726891840890,-500.0,0.00014145,2]
[338709012,1726891840899,-500.0,0.00014145,2]
[338709014,1726891840909,-500.0,0.00014145,2]
[338709016,1726891840918,-500.0,0.00014145,2]
[338709017,1726891840928,-500.0,0.00014145,2]
[338709018,1726891840937,-500.0,0.00014145,2]
[338709019,1726891840946,-550.91,0.00014145,2]
[338709020,1726891840956,-500.0,0.00014145,2]
[338709021,1726891840965,-393.1,0.00014145,2]
[338709022,1726891840974,-579.14,0.00014145,2]
[338709023,1726891840983,-683.49,0.00014145,2]
[338709024,1726891840992,-500.0,0.00014145,2]
[338709025,1726891841002,-500.0,0.00014145,2]
[338709026,1726891841011,-500.0,0.00014145,2]
[338709027,1726891841021,-500.0,0.00014145,2]
[338709028,1726891841031,-500.0,0.00014145,2]
[338709029,1726891841041,-500.0,0.00014145,2]
[338709030,1726891841051,-500.0,0.00014145,2]
[338709031,1726891841060,-500.0,0.00014145,2]
[338709032,1726891841070,-500.0,0.00014145,2]
[338709033,1726891841078,-500.0,0.00014145,2]
[338709034,1726891841088,-500.0,0.00014145,2]
[338709035,1726891841097,-500.0,0.00014145,2]
[338709036,1726891841105,-500.0,0.00014145,2]
[338709037,1726891841115,-962.75,0.00014145,2]
[338709038,1726891841125,-557.30214004,0.00014145,2]
[338709039,1726891841135,-500.0,0.00014145,2]
[338709040,1726891841145,-500.0,0.00014145,2]
[338709041,1726891841155,-500.0,0.00014145,2]
[338709042,1726891841165,-500.0,0.00014145,2]
[338709043,1726891841174,-243.23679135,0.00014145,2]
[338709044,1726891841184,-610.45906808,0.00014145,2]
[338709045,1726891841197,-500.0,0.00014145,2]
[338709046,1726891841206,-500.0,0.00014145,2]
[338709047,1726891841216,-500.0,0.00014145,2]
[338709048,1726891841225,-554.32763161,0.00014145,2]
[338709049,1726891841235,-500.0,0.00014145,2]
[338709050,1726891841244,-500.0,0.00014145,2]
[338709051,1726891841253,-500.0,0.00014145,2]
[338709052,1726891841262,-500.0,0.00014145,2]
[338709053,1726891841271,-500.0,0.00014145,2]
[338709054,1726891841280,-500.0,0.00014145,2]
[338709055,1726891841289,-500.69775541,0.00014145,2]
[338709056,1726891841299,-500.0,0.00014145,2]
[338709057,1726891841308,-500.0,0.00014145,2]
[338709058,1726891841317,-501.47178979,0.00014145,2]
[338709059,1726891841327,-500.0,0.00014145,2]
[338709060,1726891841335,-500.0,0.00014145,2]
[338709061,1726891841345,-500.0,0.00014145,2]
[338709062,1726891841356,-500.0,0.00014145,2]
[338709063,1726891841364,-500.0,0.00014145,2]
[338709064,1726891841373,-501.36229555,0.00014145,2]
[338709065,1726891841383,-500.0,0.00014145,2]
[338709066,1726891841392,-500.0,0.00014145,2]
[338709067,1726891841402,-500.0,0.00014145,2]
[338709068,1726891841411,-644.3855964,0.00014145,2]
[338709069,1726891841420,-501.06635279,0.00014145,2]
[338709070,1726891841429,-500.0,0.00014145,2]
[338709071,1726891841441,-500.0,0.00014145,2]
[338709072,1726891841451,-500.0,0.00014145,2]
[338709073,1726891841460,-625.1166916,0.00014145,2]
[338709074,1726891841469,-500.0,0.00014145,2]
[338709075,1726891841478,-500.0,0.00014145,2]
[338709076,1726891841488,-500.0,0.00014145,2]
[338709077,1726891841497,-500.0,0.00014145,2]
[338709078,1726891841507,-500.0,0.00014145,2]
[338709079,1726891841517,-500.0,0.00014145,2]
[338709080,1726891841526,-500.0,0.00014145,2]
[338709081,1726891841535,-500.0,0.00014145,2]
[338709082,1726891841544,-500.0,0.00014145,2]
[338709083,1726891841553,-500.0,0.00014145,2]
[338709084,1726891841562,-500.09872917,0.00014145,2]
[338709085,1726891841571,-500.0,0.00014145,2]
[338709086,1726891841581,-500.0,0.00014145,2]
[338709087,1726891841591,-462.10035752,0.00014145,2]
[338709088,1726891841601,-500.0,0.00014145,2]
[338709089,1726891841613,-501.16125997,0.00014145,2]
[338709090,1726891841624,-500.0,0.00014145,2]
[338709091,1726891841636,-500.0,0.00014145,2]
[338709092,1726891841647,-500.0,0.00014145,2]
[338709093,1726891841658,-500.36382533,0.00014145,2]
[338709094,1726891841667,-500.0,0.00014145,2]
[338709095,1726891841677,-500.0,0.00014145,2]
[338709096,1726891841687,-500.0,0.00014145,2]
[338709097,1726891841697,-504.04659672,0.00014145,2]
[338709098,1726891841707,-504.5349856,0.00014145,2]
[338709099,1726891841717,-500.0,0.00014145,2]
[338709100,1726891841726,-500.0,0.00014145,2]
[338709101,1726891841737,-500.0,0.00014145,2]
[338709102,1726891841747,-500.0,0.00014145,2]
[338709103,1726891841756,-500.0,0.00014145,2]
[338709104,1726891841766,-500.0,0.00014145,2]
[338709105,1726891841775,-501.53192964,0.00014145,2]
[338709106,1726891841785,-500.0,0.00014145,2]
[338709107,1726891841796,-500.0,0.00014145,2]
[338709108,1726891841807,-500.0,0.00014145,2]
[338709109,1726891841816,-500.0,0.00014145,2]
[338709110,1726891841825,-500.0,0.00014145,2]
[338709111,1726891841835,-500.0,0.00014145,2]
[338709112,1726891841845,-500.0,0.00014145,2]
[338709113,1726891841856,-500.0,0.00014145,2]
[338709114,1726891841866,-501.34504268,0.00014145,2]
[338709115,1726891841876,-500.0,0.00014145,2]
[338709116,1726891841886,-161.5777381,0.00014145,2]
[338709117,1726891841896,-500.0,0.00014145,2]
[338709118,1726891841906,-501.86951085,0.00014145,2]
[338709119,1726891841917,-500.0,0.00014145,2]
[338709120,1726891841929,-500.0,0.00014145,2]
[338709121,1726891841940,-500.0,0.00014145,2]
[338709122,1726891841949,-502.51985343,0.00014145,2]
[338709123,1726891841959,-500.0,0.00014145,2]
[338709124,1726891841968,-610.78,0.00014145,2]
[338709125,1726891841977,-500.0,0.00014145,2]
[338709126,1726891841989,-500.0,0.00014145,2]
[338709127,1726891842001,-500.0,0.00014145,2]
[338709128,1726891842010,-500.0,0.00014145,2]
[338709129,1726891842019,-500.0,0.00014145,2]
[338709130,1726891842029,-385.48990677,0.00014145,2]
[338709131,1726891842041,-500.0,0.00014145,2]
[338709132,1726891842053,-501.28438188,0.00014145,2]
[338709133,1726891842062,-624.49859837,0.00014145,2]
[338709134,1726891842071,-500.0,0.00014145,2]
[338709135,1726891842081,-503.77464367,0.00014145,2]
[338709136,1726891842092,-505.45429751,0.00014145,2]
[338709137,1726891842103,-500.0,0.00014145,2]
[338709138,1726891842112,-500.0,0.00014145,2]
[338709139,1726891842123,-505.08249481,0.00014145,2]
[338709140,1726891842134,-500.0,0.00014145,2]
[338709141,1726891842144,-151.0,0.00014145,2]
[338709142,1726891842154,-500.0,0.00014145,2]
[338709143,1726891842164,-501.97088384,0.00014145,2]
[338709144,1726891842174,-500.0,0.00014145,2]
[338709145,1726891842183,-641.91222679,0.00014145,2]
[338709146,1726891842194,-1000.0,0.00014145,2]
[338709147,1726891842203,-500.0,0.00014145,2]
[338709148,1726891842213,-500.0,0.00014145,2]
[338709149,1726891842223,-501.26830144,0.00014145,2]
[338709150,1726891842232,-500.0,0.00014145,2]
[338709151,1726891842242,-692.520974,0.00014145,2]
[338709152,1726891842252,-501.2836049,0.00014145,2]
[338709153,1726891842262,-500.0,0.00014145,2]
[338709154,1726891842272,-500.0,0.00014145,2]
[338709155,1726891842283,-692.520974,0.00014145,2]
[338709156,1726891842293,-501.93302961,0.00014145,2]
[338709157,1726891842302,-500.0,0.00014145,2]
[338709158,1726891842312,-500.0,0.00014145,2]
[338709159,1726891842323,-500.0,0.00014145,2]
[338709160,1726891842334,-500.0,0.00014145,2]
[338709161,1726891842344,-500.0,0.00014145,2]
[338709162,1726891842355,-500.0,0.00014145,2]
[338709163,1726891842365,-500.0,0.00014145,2]
[338709164,1726891842375,-279.15659459,0.00014145,2]
[338709165,1726891842385,-500.0,0.00014145,2]
[338709166,1726891842395,-500.0,0.00014145,2]
[338709167,1726891842405,-500.0,0.00014145,2]
[338709168,1726891842415,-501.64222078,0.00014145,2]
[338709169,1726891842426,-500.0,0.00014145,2]
[338709170,1726891842439,-392.42392243,0.00014145,2]
[338709171,1726891842451,-825.403668,0.00014145,2]
[338709172,1726891842461,-500.0,0.00014145,2]
[338709173,1726891842472,-500.0,0.00014145,2]
[338709174,1726891842482,-500.0,0.00014145,2]
[338709175,1726891842492,-500.0,0.00014145,2]
[338709176,1726891842502,-825.403668,0.00014145,2]
[338709177,1726891842511,-501.48584446,0.00014145,2]
[338709178,1726891842521,-501.97950968,0.00014145,2]
[338709179,1726891842530,-500.0,0.00014145,2]
[338709180,1726891842541,-500.0,0.00014145,2]
[338709181,1726891842550,-204.61478,0.00014145,2]
[338709182,1726891842560,-500.0,0.00014145,2]
[338709183,1726891842570,-356.12257363,0.00014145,2]
[338709184,1726891842580,-204.61478,0.00014145,2]
[338709185,1726891842590,-500.0,0.00014145,2]
[338709186,1726891842599,-500.0,0.00014145,2]
[338709187,1726891842610,-500.0,0.00014145,2]
[338709188,1726891842619,-500.0,0.00014145,2]
[338709189,1726891842628,-504.46760773,0.00014145,2]
[338709190,1726891842639,-500.0,0.00014145,2]
[338709191,1726891842650,-487.93919768,0.00014145,2]